bitfinex-derivatives/quotes_ETHF0:USTF0_20260306
["timestamp","ask_amount","ask_price","bid_price","bid_amount"]
[1772794414949,0.00618923,2068.3,2067.2,1.01731848]
[1772794415160,5.8179378,2068.2,2067.2,1.01731848]
[1772794415354,5.8179378,2068.1,2067.2,1.01731848]
[1772794415657,0.00618923,2068.3,2067.2,1.01731848]
[1772794415858,5.81806105,2068.2,2067.2,1.01731848]
[1772794416052,7.60433639,2068.1,2067.2,1.01731848]
[1772794416258,5.81806105,2068.0,2067.2,1.01731848]
[1772794416557,5.81806105,2067.9,2067.2,1.01731848]
[1772794416758,1.78627534,2068.1,2067.2,1.01731848]
[1772794417059,5.81817874,2068.0,2067.2,1.01731848]
[1772794417355,0.18362365,2067.4,2066.5,0.57118312]
[1772794418255,0.18362365,2067.4,2066.5,0.57636307]
[1772794418554,0.18808388,2067.7,2066.5,0.57636307]
[1772794418755,0.18808388,2067.5,2066.5,0.57636307]
[1772794419359,0.18808388,2067.7,2066.5,0.57636307]
[1772794419661,0.18808388,2067.5,2066.5,0.57636307]
[1772794421860,0.18765215,2067.7,2066.6,0.57118312]
[1772794422966,0.18497001,2067.5,2066.6,0.57118312]
[1772794425869,1.78627534,2067.6,2066.6,0.57118312]
[1772794426075,1.78627534,2067.8,2066.6,0.57118312]
[1772794426374,0.18495926,2067.7,2066.6,0.57118312]
[1772794426972,0.18495926,2067.4,2066.6,0.57118312]
[1772794432884,0.19825152,2067.6,2066.6,0.57118312]
[1772794437884,0.19825152,2067.6,2066.7,0.57118312]
[1772794438085,0.19805607,2067.9,2066.7,0.57118312]
[1772794438289,0.19805607,2067.7,2066.7,0.57118312]
[1772794439390,0.19844469,2067.9,2066.7,0.57118312]
[1772794440291,0.19844469,2067.9,2066.9,0.57118312]
[1772794440989,0.19697755,2067.7,2066.9,0.57118312]
[1772794444496,0.19529238,2067.9,2066.9,0.57118312]
[1772794444700,5.80382881,2067.8,2066.9,0.57118312]
[1772794444995,0.19529238,2068.0,2066.9,0.57118312]
[1772794445187,5.99909501,2067.9,2066.9,0.57118312]
[1772794445391,5.99909501,2067.8,2066.9,0.57118312]
[1772794445589,0.19529238,2067.8,2066.9,0.57118312]
[1772794446997,0.19374979,2068.0,2066.9,0.57118312]
[1772794447197,5.80877773,2067.9,2066.9,0.57118312]
[1772794447496,5.80877773,2067.8,2066.9,0.57118312]
[1772794447697,0.19374979,2068.0,2066.9,0.57118312]
[1772794447901,5.80943796,2067.9,2066.9,0.57118312]
[1772794448193,0.19374979,2068.0,2067.0,0.5758322]
[1772794448396,5.8086905,2067.9,2067.0,0.5758322]
[1772794448594,0.19374979,2068.0,2067.2,0.5758322]
[1772794448794,5.8086905,2067.9,2067.2,0.5758322]
[1772794448990,0.19374979,2068.0,2067.2,0.5758322]
[1772794449198,5.8086905,2067.9,2067.2,0.5758322]
[1772794449398,0.19374979,2068.0,2067.2,0.5758322]
[1772794449699,5.80795699,2067.9,2067.2,0.5758322]
[1772794449898,0.19374979,2068.0,2067.2,0.5758322]
[1772794450100,5.80795699,2067.9,2067.2,0.5758322]
[1772794450298,0.19374979,2068.0,2067.2,0.5758322]
[1772794450599,6.00156404,2067.9,2067.2,0.5758322]
[1772794450794,0.19437493,2067.9,2067.2,0.5758322]
[1772794452601,2.02814771,2068.1,2067.2,0.5758322]
[1772794452804,6.00132925,2068.0,2067.2,0.5758322]
[1772794452998,5.80593617,2067.9,2067.2,0.5758322]
[1772794453201,0.19539308,2068.0,2067.2,0.5758322]
[1772794453498,5.80537375,2067.9,2067.2,0.5758322]
[1772794453694,0.19539308,2068.0,2067.2,0.5758322]
[1772794453997,0.19539308,2068.1,2067.4,0.5758322]
[1772794455709,0.19508283,2068.2,2067.4,0.5758322]
[1772794455902,0.19508283,2068.2,2067.6,0.5758322]
[1772794457700,0.00618923,2068.3,2067.8,0.5758322]
[1772794457701,0.21038203,2068.3,2067.8,0.5758322]
[1772794459308,0.20475755,2068.0,2067.4,0.5758322]
[1772794466411,1.97979297,2068.1,2067.4,0.5758322]
[1772794466611,0.19342526,2068.0,2067.4,0.5758322]
[1772794467812,1.9859822,2068.3,2067.4,0.5758322]
[1772794468013,0.19342526,2068.2,2067.4,0.5758322]
[1772794469616,1.97776849,2068.1,2067.4,0.5758322]
[1772794470017,1.78636771,2067.7,2067.2,0.5758322]
[1772794470218,1.97776849,2067.7,2067.2,0.5758322]
[1772794471415,1.78636771,2067.5,2067.2,0.5758322]
[1772794471621,0.1922453,2067.6,2067.1,0.58618677]
[1772794473525,0.54558383,2067.8,2067.1,0.58618677]
[1772794473927,0.54558383,2067.9,2067.1,0.58618677]
[1772794474928,2.33195154,2067.9,2067.1,0.58618677]
[1772794475829,0.54558383,2067.8,2067.1,0.58618677]
[1772794484427,0.54558383,2067.4,2066.6,0.59383496]
[1772794484733,0.54558383,2067.4,2066.8,0.59383496]
[1772794485231,0.54558383,2067.2,2066.8,0.59383496]
[1772794485432,0.54558383,2067.2,2066.5,0.59901491]
[1772794486834,0.54558383,2067.4,2066.6,0.59383496]
[1772794488730,0.54558383,2067.5,2066.8,0.59383496]
[1772794494235,1.78636771,2066.9,2066.5,0.59901491]
[1772794494535,0.54558383,2067.3,2066.5,0.59901491]
[1772794494737,0.54558383,2067.3,2066.7,0.59383496]
[1772794495439,0.54558383,2067.0,2066.6,0.59383496]
[1772794495633,2.33195154,2067.1,2066.6,0.59383496]
[1772794495938,0.54558383,2067.1,2066.6,0.59383496]
[1772794496433,0.54558383,2067.4,2066.2,0.59383496]
[1772794496641,0.54558383,2067.4,2066.1,0.59383496]
[1772794496642,0.54558383,2066.6,2066.1,0.59383496]
[1772794496838,0.54558383,2066.7,2066.1,0.59383496]
[1772794497534,0.54960535,2066.7,2066.1,0.59971575]
[1772794499543,0.54558383,2066.6,2066.1,0.59971575]
[1772794499743,0.54558383,2066.4,2065.8,0.59383496]
[1772794500042,0.54558383,2066.2,2065.6,0.59383496]
[1772794500430,0.54558383,2066.0,2065.5,0.59383496]
[1772794500635,0.54558383,2065.8,2065.3,0.59383496]
[1772794500941,0.54558383,2065.4,2065.1,0.59891864]
[1772794501138,0.54558383,2065.4,2064.8,0.59383496]
[1772794501333,1.78636771,2065.7,2064.9,0.59383496]
[1772794501537,0.58690368,2065.9,2065.1,0.56159598]
[1772794501738,0.58690368,2065.7,2065.1,0.56159598]
[1772794502241,0.58690368,2065.7,2065.1,0.56738351]
[1772794505844,0.58690368,2066.0,2065.1,0.56738351]
[1772794514654,0.58690368,2066.0,2064.8,0.56159598]
[1772794515554,0.58690368,2065.8,2064.8,0.56159598]
[1772794515759,0.58690368,2065.8,2064.8,0.5658776]
[1772794516153,0.58690368,2065.8,2064.9,0.56159598]
[1772794527273,4.04959249,2066.1,2065.1,0.56159598]
[1772794527274,0.58690368,2066.0,2065.1,0.56159598]
[1772794529375,0.58690368,2065.8,2065.1,0.56159598]
[1772794537878,0.59734252,2066.0,2065.1,0.56159598]
[1772794538084,0.59734252,2066.0,2065.3,0.58043005]
[1772794539488,0.59734252,2066.2,2065.3,0.58043005]
[1772794539687,5.86776394,2066.1,2065.3,0.58043005]
[1772794539985,0.59734252,2066.2,2065.3,0.58043005]
[1772794540187,6.46510646,2066.1,2065.3,0.58043005]
[1772794540386,0.59734252,2066.1,2065.3,0.58043005]
[1772794543393,0.59734252,2066.3,2065.3,0.58043005]
[1772794543691,6.45957205,2066.2,2065.3,0.58043005]
[1772794543891,6.07368003,2066.6,2065.3,0.58043005]
[1772794543892,0.59734252,2066.3,2065.3,0.58043005]
[1772794544090,5.86222953,2066.2,2065.3,0.58043005]
[1772794544291,0.59734252,2066.3,2065.3,0.58043005]
[1772794544486,6.45874893,2066.2,2065.3,0.58043005]
[1772794544690,0.59734252,2066.2,2065.3,0.58043005]
[1772794550997,0.59734252,2066.2,2065.4,0.58043005]
[1772794551198,0.59734252,2066.2,2065.5,0.58043005]
[1772794559499,1.7942789,2066.7,2065.6,0.58043005]
[1772794559500,0.59734252,2066.3,2065.6,0.58043005]
[1772794561001,0.59734252,2066.0,2065.1,10.318]
[1772794561201,0.59734252,2066.0,2065.1,10.89843005]
[1772794561793,0.59734252,2066.0,2065.2,0.5713245]
[1772794565306,0.59734252,2066.0,2065.3,0.5713245]
[1772794569311,0.59734252,2066.0,2065.2,1.931]
[1772794569506,0.59734252,2066.0,2065.1,10.8893245]
[1772794569803,0.58243661,2065.8,2065.1,10.8893245]
[1772794570305,0.58243661,2065.8,2065.1,10.318]
[1772794572207,0.58243661,2065.7,2065.1,10.8893245]
[1772794572406,0.58243661,2065.7,2065.2,0.5713245]
[1772794573604,0.58243661,2065.7,2065.1,10.318]
[1772794573808,0.58243661,2065.6,2065.1,10.8893245]
[1772794574410,0.58243661,2065.6,2065.2,0.5713245]
[1772794579309,0.58243661,2065.6,2065.1,10.8893245]
[1772794579710,0.58243661,2065.4,2065.1,10.318]
[1772794580009,0.58243661,2065.4,2065.1,10.8893245]
[1772794582111,1.79013362,2065.7,2065.1,10.8893245]
[1772794582310,0.58243661,2065.6,2065.1,10.8893245]
[1772794582513,0.58243661,2065.6,2065.2,0.5713245]
[1772794583106,0.58243661,2065.6,2065.1,10.8893245]
[1772794583811,0.58243661,2065.6,2065.1,10.318]
[1772794584009,0.58243661,2065.6,2065.1,10.8893245]
[1772794584510,0.58243661,2065.4,2064.8,0.57560612]
[1772794584710,0.58243661,2065.4,2064.9,10.8333245]
[1772794586407,0.58243661,2065.4,2065.0,0.5713245]
[1772794586613,0.58243661,2065.4,2064.9,10.8333245]
[1772794589115,0.58243661,2065.4,2065.0,0.5713245]
[1772794589816,0.58243661,2065.4,2064.9,10.8333245]
[1772794590015,0.58243661,2065.4,2065.0,0.5713245]
[1772794590313,0.58243661,2065.4,2064.9,10.262]
[1772794590519,0.58243661,2065.2,2064.9,10.262]
[1772794590713,0.00597785,2065.2,2065.0,0.5713245]
[1772794591209,0.00597785,2065.2,2064.9,10.8333245]
[1772794591515,0.00597785,2065.2,2065.0,0.5713245]
[1772794591716,0.5730583,2065.4,2065.0,0.5713245]
[1772794592016,0.5880668,2065.5,2065.0,0.5713245]
[1772794592614,0.59235249,2065.5,2065.0,0.5713245]
[1772794593720,2.38248611,2065.5,2065.0,0.54481169]
[1772794593914,0.5880668,2065.4,2065.0,0.54481169]
[1772794594114,0.5880668,2065.4,2064.9,10.80681169]
[1772794595421,0.59235249,2065.5,2065.0,0.54481169]
[1772794596522,0.5880668,2065.4,2064.9,10.262]
[1772794597319,0.5880668,2065.4,2064.9,10.80681169]
[1772794597518,0.5880668,2065.4,2064.9,10.262]
[1772794597822,0.5880668,2065.4,2064.9,10.80681169]
[1772794600627,0.5880668,2065.4,2064.9,10.262]
[1772794600923,0.5880668,2065.2,2064.9,10.80681169]
[1772794602125,0.5880668,2065.3,2064.9,10.80681169]
[1772794602629,0.5880668,2065.3,2065.0,0.54481169]
[1772794602829,0.5880668,2065.3,2064.9,10.262]
[1772794603020,0.5880668,2065.2,2064.9,10.262]
[1772794603525,0.5880668,2065.2,2064.8,0.54909331]
[1772794606329,0.5880668,2065.4,2064.8,0.54909331]
[1772794614133,0.00428569,2065.5,2064.8,2.33922693]
[1772794614331,0.00428569,2065.5,2065.1,0.54481169]
[1772794614635,0.5880668,2065.7,2065.2,0.54481169]
[1772794615436,0.59341752,2065.7,2065.2,0.54481169]
[1772794616035,0.00535072,2065.7,2065.2,2.33494531]
[1772794616237,0.00535072,2065.7,2065.3,0.54481169]
[1772794616734,0.5880668,2066.1,2065.5,0.54481169]
[1772794616924,0.5880668,2066.1,2065.6,0.54481169]
[1772794617529,0.59390895,2066.1,2065.6,0.54481169]
[1772794619140,0.00584215,2066.1,2065.6,0.54481169]
[1772794619837,0.59390895,2066.1,2065.6,0.54481169]
[1772794620544,0.5880668,2065.6,2065.2,0.54481169]
[1772794620732,0.5880668,2065.6,2065.3,10.99981169]
[1772794620932,0.59390895,2066.1,2065.5,0.54481169]
[1772794621237,0.00584215,2066.1,2065.5,0.54481169]
[1772794621439,0.59390895,2066.1,2065.5,0.54481169]
[1772794621742,0.59089317,2066.0,2065.5,0.54481169]
[1772794621942,0.59089317,2065.8,2065.3,11.03685578]
[1772794626345,0.59089317,2065.8,2065.4,0.57585578]
[1772794628146,0.59089317,2065.8,2065.3,11.03685578]
[1772794628443,0.59089317,2065.8,2065.4,0.57585578]
[1772794629946,0.59089317,2066.0,2065.4,0.57585578]
[1772794635648,0.59673532,2066.1,2065.4,0.57585578]
[1772794635947,0.00584215,2066.1,2065.4,0.57585578]
[1772794636658,0.59089317,2066.4,2065.5,0.57585578]
[1772794636954,0.59089317,2066.4,2065.6,0.57585578]
[1772794637354,0.59089317,2066.6,2065.7,0.57585578]
[1772794637546,0.59642028,2066.6,2065.9,0.57585578]
[1772794638148,0.00552711,2066.6,2065.9,0.57585578]
[1772794638352,0.59089317,2066.8,2066.1,0.57585578]
[1772794639257,0.59089317,2066.8,2065.9,0.57585578]
[1772794639454,0.59506132,2066.8,2065.9,0.57585578]
[1772794642354,0.59089317,2066.6,2065.9,0.57585578]
[1772794642655,0.59089317,2066.4,2065.7,0.57585578]
[1772794647460,0.59089317,2066.4,2065.4,0.57585578]
[1772794647659,0.59089317,2066.4,2065.5,0.57585578]
[1772794650666,0.59089317,2066.6,2065.8,0.57585578]
[1772794651460,0.59089317,2066.7,2065.8,0.57585578]
[1772794651857,0.00416815,2066.8,2066.1,0.57525645]
[1772794652063,0.54295591,2066.8,2066.1,0.57525645]
[1772794653970,0.54295591,2066.8,2066.0,11.11225645]
[1772794654164,0.54295591,2066.8,2065.9,0.57525645]
[1772794654371,0.53878776,2066.6,2065.9,0.57525645]
[1772794655269,0.53878776,2066.6,2065.6,0.57525645]
[1772794656675,0.53878776,2066.6,2065.7,0.57525645]
[1772794664277,5.79740778,2066.5,2065.7,0.57525645]
[1772794664477,0.53878776,2066.4,2065.7,0.57525645]
[1772794667275,0.53878776,2066.4,2065.3,0.24209]
[1772794667481,0.53878776,2066.2,2065.4,0.57525645]
[1772794673392,0.53878776,2066.2,2064.9,0.57525645]
[1772794678889,0.53878776,2066.0,2064.9,0.57525645]
[1772794685600,0.57148056,2065.8,2064.9,0.57525645]
[1772794685800,0.57148056,2065.6,2064.8,0.59752399]
[1772794691205,0.57148056,2066.0,2064.8,0.59752399]
[1772794691403,0.57148056,2065.8,2064.8,0.59752399]
[1772794696109,0.5839656,2065.7,2064.8,0.59752399]
[1772794697710,0.5839656,2065.5,2064.8,0.59752399]
[1772794699312,0.5839656,2065.3,2064.8,0.00428162]
[1772794699512,0.58753008,2065.3,2064.8,0.00428162]
[1772794699714,0.58753008,2065.3,2064.7,0.54103063]
[1772794700614,0.58753008,2065.3,2064.7,0.54473399]
[1772794710011,0.00356448,2065.3,2065.0,0.54103063]
[1772794710210,0.5839656,2065.5,2065.0,0.54103063]
[1772794711114,0.58966556,2065.5,2065.0,0.54103063]
[1772794712925,0.54238481,2065.2,2064.7,0.5965749]
[1772794716720,0.54238481,2065.2,2064.6,0.59287154]
[1772794717821,0.54238481,2065.2,2064.6,0.59764328]
[1772794722820,0.54238481,2065.4,2064.6,0.59764328]
[1772794723021,0.54238481,2065.2,2064.6,0.59764328]
[1772794726033,0.54238481,2064.6,2063.8,0.26498269]
[1772794726332,0.54238481,2064.4,2063.8,0.26498269]
[1772794726734,0.54238481,2064.2,2063.8,0.26498269]
[1772794726926,0.54238481,2064.2,2063.5,10.475]
[1772794728132,0.54238481,2064.2,2063.5,10.47891492]
[1772794728331,0.54238481,2064.2,2063.6,0.0020556]
[1772794730133,0.54238481,2064.2,2063.5,10.47891492]
[1772794730532,0.54238481,2064.2,2063.5,10.48125185]
[1772794730935,0.59695352,2064.0,2063.5,0.00391492]
[1772794731132,0.60043719,2064.0,2063.5,0.00391492]
[1772794731432,0.60043719,2064.0,2063.6,0.00233693]
[1772794733033,0.00348367,2064.0,2063.7,0.00392396]
[1772794733232,0.59616001,2064.2,2063.7,0.00392396]
[1772794733633,0.59616001,2064.2,2063.5,0.00391492]
[1772794734132,0.60245285,2064.2,2063.5,0.00391492]
[1772794734335,0.60245285,2064.2,2063.6,0.0045534]
[1772794736532,0.60245285,2064.2,2063.8,0.0045534]
[1772794739737,0.60245285,2064.2,2063.5,1.79494767]
[1772794740532,0.60245285,2064.2,2063.5,0.00391492]
[1772794741737,0.60245285,2064.2,2063.6,1.79103275]
[1772794742436,0.60245285,2064.2,2063.5,0.00391492]
[1772794744740,0.60245285,2064.2,2063.5,0.00391492]
[1772794747832,0.60245285,2064.2,2063.8,1.79103275]
[1772794748032,0.60245285,2064.2,2063.6,1.79103275]
[1772794755242,0.60245285,2064.2,2063.5,0.00391492]
[1772794755447,0.60245285,2064.2,2063.5,1.79494767]
[1772794756344,0.55274227,2064.6,2064.2,0.59320483]
[1772794756946,0.55274227,2064.7,2064.2,0.59320483]
[1772794757350,0.5565122,2064.7,2064.2,0.59320483]
[1772794758847,0.24218,2064.6,2063.7,0.59320483]
[1772794759047,0.55274227,2064.4,2063.6,0.59320483]
[1772794774863,0.56117595,2064.2,2063.6,0.59320483]
[1772794775463,0.56117595,2064.2,2063.5,0.00391492]
[1772794775662,0.56117595,2064.2,2063.5,0.56300901]
[1772794776063,0.56117595,2064.2,2063.5,0.00391492]
[1772794776962,0.56117595,2064.0,2063.4,0.55613135]
[1772794777161,0.56117595,2063.9,2063.0,0.55909409]
[1772794778063,0.56117595,2063.9,2063.0,0.56321516]
[1772794781569,0.56117595,2064.0,2063.0,0.56321516]
[1772794786173,0.56117595,2063.9,2063.0,0.56321516]
[1772794801282,0.24228,2063.8,2063.0,0.00412107]
[1772794801584,0.58195644,2063.6,2063.0,0.00412107]
[1772794801981,0.58195644,2063.4,2062.4,11.15705147]
[1772794802184,5.82150126,2063.5,2062.4,11.15705147]
[1772794802185,0.58195644,2063.2,2062.4,11.15705147]
[1772794802377,0.58195644,2063.0,2062.4,0.57205147]
[1772794802578,0.58195644,2063.0,2061.9,0.57205147]
[1772794802880,0.5881894,2063.0,2061.9,0.5755227]
[1772794803183,0.58195644,2062.8,2061.9,0.5755227]
[1772794803386,0.5881894,2063.0,2062.1,0.57205147]
[1772794805081,0.00623296,2063.0,2062.1,0.57205147]
[1772794805388,0.00623296,2063.0,2062.4,0.57205147]
[1772794807293,0.5881894,2063.0,2062.4,0.57205147]
[1772794807490,0.5881894,2063.0,2062.2,11.17005147]
[1772794807691,0.5881894,2063.0,2062.3,0.57205147]
[1772794809895,0.5881894,2063.0,2062.0,0.57205147]
[1772794811084,0.5881894,2063.0,2061.9,0.00347123]
[1772794811287,0.5881894,2063.0,2062.0,0.57205147]
[1772794811487,0.5881894,2063.0,2061.9,0.00347123]
[1772794811694,0.5881894,2063.0,2061.9,0.5755227]
[1772794812592,0.5881894,2063.0,2062.2,0.57205147]
[1772794812888,0.58195644,2063.5,2062.8,0.57205147]
[1772794813495,0.58195644,2063.5,2062.5,11.18905147]
[1772794813896,0.58714072,2063.5,2062.6,0.57205147]
[1772794818502,0.58714072,2063.5,2063.0,0.57205147]
[1772794819804,0.58714072,2063.5,2062.5,10.617]
[1772794819805,0.58195644,2063.4,2062.6,0.57205147]
[1772794820095,0.58195644,2063.0,2062.3,0.57205147]
[1772794820296,0.58195644,2063.0,2062.5,0.57205147]
[1772794820699,0.58195644,2063.2,2062.7,0.57205147]
[1772794821599,0.58195644,2063.4,2062.9,0.57205147]
[1772794821802,0.58714072,2063.5,2063.1,0.57205147]
[1772794828208,0.58195644,2063.8,2063.3,0.57205147]
[1772794828408,0.58195644,2064.0,2063.5,0.57205147]
[1772794828604,0.58195644,2064.0,2063.3,0.57205147]
[1772794829203,0.58603827,2064.0,2063.3,0.57562908]
[1772794831111,0.58603827,2064.0,2063.3,0.57562908]
[1772794831713,0.58603827,2064.0,2063.5,0.57868614]
[1772794832110,0.58603827,2064.0,2063.4,0.59477485]
[1772794832312,0.58603827,2064.0,2063.3,0.00357761]
[1772794834108,0.585859,2063.9,2063.3,0.00357761]
[1772794834608,0.585859,2063.8,2063.0,0.59477485]
[1772794835411,0.585859,2063.8,2063.0,0.59841843]
[1772794840819,0.49020998,2063.8,2063.0,0.59841843]
[1772794841916,0.54545059,2063.6,2063.0,0.59841843]
[1772794842625,0.54524028,2063.2,2062.4,1.7938053]
[1772794842820,0.54524028,2062.8,2062.3,0.59477485]
[1772794843226,0.54524028,2062.8,2061.9,0.2425]
[1772794843227,0.54524028,2062.8,2061.9,0.59477485]
[1772794843626,0.54524028,2062.8,2061.9,0.59991611]
[1772794843826,0.54524028,2063.0,2062.5,0.59477485]
[1772794844530,0.54524028,2063.2,2062.5,0.59477485]
[1772794845332,0.54836024,2063.0,2062.5,0.59477485]
[1772794845529,0.54836024,2063.0,2062.1,0.59477485]
[1772794848029,0.54215564,2062.4,2061.9,1.26e-06]
[1772794848231,5.96318,2062.8,2061.3,0.59477485]
[1772794848232,0.54215564,2062.0,2061.3,0.59477485]
[1772794849133,0.54756533,2062.0,2061.3,0.60048975]
[1772794849527,0.54756533,2062.0,2060.9,0.59477485]
[1772794849734,0.05832297,2061.6,2060.4,0.59477485]
[1772794850030,6.59786143,2061.7,2060.4,0.59477485]
[1772794850031,0.05832297,2061.4,2060.4,0.59477485]
[1772794850430,0.05435759,2061.6,2060.5,0.24267]
[1772794850728,0.05976728,2062.0,2060.7,0.24264]
[1772794850933,0.00540969,2062.0,2061.0,0.59477485]
[1772794851734,0.05435759,2062.4,2061.2,0.59477485]
[1772794852035,0.05435759,2062.7,2061.2,0.59477485]
[1772794852736,0.05783791,2062.7,2061.2,0.59477485]
[1772794854130,0.04969594,2062.5,2061.2,0.59477485]
[1772794854337,6.39769594,2062.5,2061.2,0.59477485]
[1772794854533,0.06288711,2062.4,2061.2,0.59477485]
[1772794856031,0.06288711,2062.6,2061.4,0.59477485]
[1772794856238,0.00348032,2062.7,2061.0,5.96822]
[1772794856239,0.00348032,2062.7,2061.6,0.59477485]
[1772794856534,0.00348032,2062.7,2061.8,0.59477485]
[1772794856842,0.05954138,2063.2,2062.0,0.59477485]
[1772794857734,0.06550266,2063.2,2062.0,0.60079659]
[1772794859038,0.06883995,2063.1,2062.0,0.60079659]
[1772794861140,0.06904202,2062.9,2062.0,0.60079659]
[1772794861340,0.06904202,2062.7,2062.0,0.00602174]
[1772794862436,0.06904202,2062.7,2062.0,0.6015922]
[1772794862634,6.41673244,2063.1,2062.0,0.6015922]
[1772794862834,0.06973244,2063.0,2062.0,0.6015922]
[1772794863231,0.07569372,2063.2,2062.0,0.6015922]
[1772794865944,0.06983109,2062.9,2062.0,0.6015922]
[1772794868736,0.05454948,2063.1,2062.0,0.6015922]
[1772794869344,0.06051076,2063.2,2062.0,0.6015922]
[1772794870642,0.24236,2063.1,2062.0,0.6015922]
[1772794870845,0.0535984,2063.0,2062.0,0.6015922]
[1772794873438,0.05366035,2062.9,2062.0,0.6015922]
[1772794875246,0.05282291,2062.7,2062.0,0.6015922]
[1772794875939,0.05282291,2063.1,2062.0,0.6015922]
[1772794876646,0.05489637,2062.9,2062.0,0.6015922]
[1772794877348,0.24237,2063.0,2062.0,0.6015922]
[1772794877349,0.05489637,2062.8,2062.0,0.6015922]
[1772794878448,0.01829467,2063.0,2062.0,0.6015922]
[1772794878648,6.36529467,2063.0,2062.0,0.6015922]
[1772794879544,0.01829467,2062.9,2062.0,0.6015922]
[1772794881052,0.01435797,2063.1,2062.0,0.6015922]
[1772794881247,5.84030267,2063.0,2062.0,0.6015922]
[1772794881550,6.36135797,2063.1,2062.0,0.6015922]
[1772794881749,5.85797886,2063.0,2062.0,0.6015922]
[1772794881949,0.01435797,2063.0,2062.0,0.6015922]
[1772794882646,4.05339074,2063.2,2062.0,0.6015922]
[1772794882847,12.19156031,2063.1,2062.0,0.6015922]
[1772794883045,5.84456031,2063.0,2062.0,0.6015922]
[1772794884654,0.02039426,2063.2,2062.0,0.6015922]
[1772794884850,5.84927721,2063.1,2062.0,0.6015922]
[1772794885050,5.84927721,2063.0,2062.0,0.6015922]
[1772794885248,6.36739426,2063.2,2062.2,0.60498271]
[1772794885552,5.85246676,2063.1,2062.2,0.60498271]
[1772794885752,5.85246676,2063.0,2062.2,0.60498271]
[1772794886052,6.36739426,2063.2,2062.2,0.60498271]
[1772794886352,5.8523889,2063.1,2062.2,0.60498271]
[1772794886554,5.8523889,2063.0,2062.2,0.60498271]
[1772794886749,0.02039426,2063.2,2062.2,0.60498271]
[1772794886951,5.85263089,2063.1,2062.2,0.60498271]
[1772794887250,5.85263089,2063.0,2062.2,0.60498271]
[1772794887450,6.36739426,2063.2,2062.2,0.60498271]
[1772794887647,5.85253467,2063.1,2062.2,0.60498271]
[1772794887848,5.85253467,2063.0,2062.2,0.60498271]
[1772794888048,6.36739426,2063.2,2062.2,0.60498271]
[1772794888350,5.85241125,2063.1,2062.2,0.60498271]
[1772794888552,5.85241125,2063.0,2062.2,0.60498271]
[1772794888745,0.00596128,2063.2,2062.2,0.60498271]
[1772794888946,5.85232856,2063.1,2062.2,0.60498271]
[1772794889146,0.00596128,2063.2,2062.2,0.60498271]
[1772794889850,0.00596128,2063.2,2062.4,0.60627068]
[1772794893951,6.347,2063.6,2062.6,0.59904219]
[1772794894156,5.82711704,2063.5,2062.6,0.59904219]
[1772794894355,0.24234,2063.3,2062.6,0.59904219]
[1772794894648,5.82711704,2063.4,2062.1,0.59923729]
[1772794894649,0.24236,2063.1,2062.1,0.59923729]
[1772794894851,12.17148462,2063.0,2062.1,0.59923729]
[1772794895053,5.82448462,2062.9,2062.1,0.59923729]
[1772794895251,6.347,2063.0,2062.1,0.59923729]
[1772794895252,5.82448462,2062.8,2062.1,0.59923729]
[1772794895453,6.347,2063.0,2062.1,0.59923729]
[1772794895653,5.82363459,2062.9,2062.1,0.59923729]
[1772794895846,0.00439771,2063.1,2062.1,0.59923729]
[1772794896050,5.82372127,2063.0,2062.1,0.59923729]
[1772794896252,6.35139771,2063.1,2062.1,0.59923729]
[1772794896562,5.82464896,2063.0,2062.1,0.59923729]
[1772794896856,6.35139771,2063.1,2062.1,0.59923729]
[1772794897050,5.82476722,2063.0,2062.1,0.59923729]
[1772794897254,6.35139771,2063.1,2062.1,0.59923729]
[1772794897451,5.82519981,2063.0,2062.1,0.59923729]
[1772794897652,5.82519981,2062.9,2062.1,0.59923729]
[1772794897853,6.35139771,2063.1,2062.1,0.59923729]
[1772794898055,5.82520979,2063.0,2062.1,0.59923729]
[1772794898255,6.35139771,2063.1,2062.1,0.59923729]
[1772794898256,5.82520979,2062.9,2062.1,0.59923729]
[1772794898558,6.35139771,2063.1,2062.1,0.59923729]
[1772794898756,5.8255263,2063.0,2062.1,0.59923729]
[1772794898957,0.00439771,2063.1,2062.1,0.59923729]
[1772794904057,0.00439771,2063.1,2062.3,0.60688651]
[1772794905164,10.37999648,2063.6,2062.5,0.6067896]
[1772794905360,5.82561524,2063.5,2062.5,0.6067896]
[1772794905561,5.82561524,2063.4,2062.5,0.6067896]
[1772794905860,4.03299648,2063.7,2062.5,0.6067896]
[1772794906066,6.347,2063.6,2062.5,0.6067896]
[1772794906364,5.82573964,2063.5,2062.5,0.6067896]
[1772794906562,6.35277858,2063.6,2062.5,0.6067896]
[1772794906862,5.82273042,2063.5,2062.5,0.6067896]
[1772794907062,6.35277858,2063.6,2062.5,0.6067896]
[1772794907258,5.82245057,2063.5,2062.5,0.6067896]
[1772794907465,5.82245057,2063.4,2062.5,0.6067896]
[1772794907665,6.35277858,2063.6,2062.5,0.6067896]
[1772794907866,5.82197081,2063.5,2062.5,0.6067896]
[1772794908065,5.82197081,2063.4,2062.5,0.6067896]
[1772794908260,0.00577858,2063.6,2062.5,0.6067896]
[1772794908464,12.16921226,2063.5,2062.5,0.6067896]
[1772794908765,0.00577858,2063.6,2062.5,0.6067896]
[1772794908965,5.82020689,2063.5,2062.5,0.6067896]
[1772794909167,6.35277858,2063.6,2062.5,0.6067896]
[1772794909466,5.81930754,2063.5,2062.5,0.6067896]
[1772794909666,6.35277858,2063.6,2062.5,0.6067896]
[1772794909966,5.81919855,2063.5,2062.5,0.6067896]
[1772794910163,6.35277858,2063.6,2062.5,0.6067896]
[1772794910362,5.81906772,2063.5,2062.5,0.6067896]
[1772794910564,6.35277858,2063.6,2062.5,0.6067896]
[1772794910763,0.24233,2063.4,2062.5,0.6067896]
[1772794911167,0.24233,2063.4,2062.0,0.00602174]
[1772794911168,0.24235,2063.2,2062.1,0.60501259]
[1772794911464,12.16684194,2063.1,2062.1,0.60501259]
[1772794911667,5.81984194,2063.0,2062.1,0.60501259]
[1772794911867,6.347,2063.1,2062.1,0.60501259]
[1772794912066,6.06173794,2063.0,2062.1,0.60501259]
[1772794912268,0.24237,2063.0,2062.1,0.60501259]
[1772794913862,5.81873876,2062.9,2062.1,0.60501259]
[1772794914063,0.24237,2063.0,2062.1,0.60501259]
[1772794914365,0.24237,2063.0,2062.0,0.60902987]
[1772794914366,5.81819118,2062.9,2062.0,0.60902987]
[1772794914568,5.81819118,2062.8,2062.0,0.60902987]
[1772794914868,5.81819118,2062.7,2062.0,0.60902987]
[1772794915062,4.27536648,2063.0,2062.0,0.60902987]
[1772794915262,5.81626577,2062.9,2062.0,0.60902987]
[1772794915564,5.81626577,2062.8,2062.0,0.60902987]
[1772794915763,4.27536648,2063.0,2062.0,0.60902987]
[1772794915959,5.81642766,2062.9,2062.0,0.60902987]
[1772794916164,5.81642766,2062.8,2062.0,0.60902987]
[1772794916366,5.81642766,2062.7,2062.0,0.60902987]
[1772794916661,4.27536648,2063.0,2062.0,0.60902987]
[1772794916867,5.81538244,2062.9,2062.0,0.60902987]
[1772794917067,5.81538244,2062.8,2062.0,0.60902987]